[Event "Titled Tuesday Blitz March 28 Early 2023"]
[White "Shtompel, Yuriy"]
[Black "Hajiyev, Kanan"]
[WhiteFideId "14168278"]
[BlackFideId "13404148"]
[WhiteElo "1844"]
[BlackElo "2103"]
[Result "1/2-1/2"]
[Round "06"]
[TimeControl "180+2"]
[Date "2023.03.28"]
[WhiteClock "0:00:25"]
[BlackClock "0:00:11"]

1. e4 {[%clk 0:03:00]}  c6 {[%clk 0:02:51]} 2. d4 {[%clk 0:03:00]}  d5 {[%clk 0:02:52]} 3. e5 {[%clk 0:03:01]}  c5 {[%clk 0:02:52]} 4. dxc5 {[%clk 0:02:59]}  e6 {[%clk 0:02:52]} 5. Nf3 {[%clk 0:02:55]}  Bxc5 {[%clk 0:02:52]} 6. Bd3 {[%clk 0:02:53]}  Ne7 {[%clk 0:02:51]} 7. O-O {[%clk 0:02:53]}  Ng6 {[%clk 0:02:50]} 8. Qe2 {[%clk 0:02:53]}  Nc6 {[%clk 0:02:49]} 9. c3 {[%clk 0:02:52]}  Qc7 {[%clk 0:02:36]} 10. Re1 {[%clk 0:02:48]}  a5 {[%clk 0:02:29]} 11. Na3 {[%clk 0:02:43]}  Bxa3 {[%clk 0:02:20]} 12. bxa3 {[%clk 0:02:44]}  O-O {[%clk 0:02:20]} 13. h4 {[%clk 0:02:40]}  Bd7 {[%clk 0:01:44]} 14. h5 {[%clk 0:02:16]}  Nge7 {[%clk 0:01:44]} 15. Bg5 {[%clk 0:02:09]}  h6 {[%clk 0:01:42]} 16. Bd2 {[%clk 0:01:45]}  f5 {[%clk 0:01:29]} 17. exf6 {[%clk 0:01:35]}  Rxf6 {[%clk 0:01:28]} 18. c4 {[%clk 0:00:57]}  d4 {[%clk 0:01:22]} 19. Qe4 {[%clk 0:00:50]}  Raf8 {[%clk 0:00:29]} 20. Qh7+ {[%clk 0:00:35]}  Kf7 {[%clk 0:00:29]} 21. Re4 {[%clk 0:00:21]}  Nf5 {[%clk 0:00:24]} 22. Rg4 {[%clk 0:00:15]}  Ke8 {[%clk 0:00:19]} 23. Bxf5 {[%clk 0:00:14]}  Rxf5 {[%clk 0:00:18]} 24. Rxg7 {[%clk 0:00:15]}  R5f7 {[%clk 0:00:09]} 25. Re1 {[%clk 0:00:13]}  Bc8 {[%clk 0:00:06]} 26. Bxh6 {[%clk 0:00:10]}  Rxg7 {[%clk 0:00:05]} 27. Qxg7 {[%clk 0:00:11]}  Qxg7 {[%clk 0:00:05]} 28. Bxg7 {[%clk 0:00:12]}  Rf5 {[%clk 0:00:03]} 29. h6 {[%clk 0:00:12]}  Rh5 {[%clk 0:00:03]} 30. g4 {[%clk 0:00:12]}  Rh3 {[%clk 0:00:01]} 31. Kg2 {[%clk 0:00:13]}  Rxf3 {[%clk 0:00:01]} 32. Kxf3 {[%clk 0:00:13]}  Kf7 {[%clk 0:00:01]} 33. Be5 {[%clk 0:00:12]}  Bd7 {[%clk 0:00:02]} 34. h7 {[%clk 0:00:11]}  Nxe5+ {[%clk 0:00:02]} 35. Rxe5 {[%clk 0:00:12]}  Kg7 {[%clk 0:00:03]} 36. Rh5 {[%clk 0:00:12]}  Kh8 {[%clk 0:00:03]} 37. Ke4 {[%clk 0:00:12]}  e5 {[%clk 0:00:03]} 38. Kxe5 {[%clk 0:00:12]}  d3 {[%clk 0:00:03]} 39. Rh1 {[%clk 0:00:09]}  Bc6 {[%clk 0:00:03]} 40. Rd1 {[%clk 0:00:09]}  Kxh7 {[%clk 0:00:02]} 41. Rxd3 {[%clk 0:00:10]}  Kg6 {[%clk 0:00:03]} 42. Rd6+ {[%clk 0:00:10]}  Kg5 {[%clk 0:00:01]} 43. Rxc6 {[%clk 0:00:11]}  bxc6 {[%clk 0:00:02]} 44. Kd6 {[%clk 0:00:12]}  Kxg4 {[%clk 0:00:02]} 45. Kxc6 {[%clk 0:00:13]}  Kf3 {[%clk 0:00:03]} 46. Kb6 {[%clk 0:00:13]}  Kxf2 {[%clk 0:00:04]} 47. c5 {[%clk 0:00:14]}  Ke3 {[%clk 0:00:05]} 48. Kxa5 {[%clk 0:00:15]}  Kd4 {[%clk 0:00:06]} 49. Kb6 {[%clk 0:00:16]}  Kc4 {[%clk 0:00:06]} 50. c6 {[%clk 0:00:17]}  Kd5 {[%clk 0:00:06]} 51. c7 {[%clk 0:00:17]}  Kc4 {[%clk 0:00:07]} 52. c8=Q+ {[%clk 0:00:18]}  Kd4 {[%clk 0:00:08]} 53. a4 {[%clk 0:00:18]}  Kd5 {[%clk 0:00:07]} 54. a5 {[%clk 0:00:19]}  Ke5 {[%clk 0:00:07]} 55. a6 {[%clk 0:00:19]}  Kd4 {[%clk 0:00:08]} 56. a7 {[%clk 0:00:20]}  Kd3 {[%clk 0:00:08]} 57. a8=Q {[%clk 0:00:21]}  Kd2 {[%clk 0:00:09]} 58. Qab7 {[%clk 0:00:21]}  Ke3 {[%clk 0:00:09]} 59. Qbd7 {[%clk 0:00:22]}  Kf4 {[%clk 0:00:10]} 60. Qce8 {[%clk 0:00:23]}  Kg5 {[%clk 0:00:10]} 61. Qdf7 {[%clk 0:00:24]}  Kh6 {[%clk 0:00:11]} 62. Qeg8 {[%clk 0:00:25]} 1/2-1/2


[Site "https://www.chess.com"]

[Event "Titled Tuesday Blitz March 28 Early 2023"]
[White "Harriott, Tyrell"]
[Black "Kosakowski, Jakub"]
[WhiteFideId "2086484"]
[BlackFideId "1185080"]
[WhiteElo "2107"]
[BlackElo "2488"]
[Result "0-1"]
[Round "06"]
[TimeControl "180+2"]
[Date "2023.03.28"]
[WhiteClock "0:00:58"]
[BlackClock "0:01:01"]

1. d4 {[%clk 0:03:00]}  Nf6 {[%clk 0:02:56]} 2. e3 {[%clk 0:03:01]}  e6 {[%clk 0:02:55]} 3. Bd3 {[%clk 0:03:02]}  c5 {[%clk 0:02:54]} 4. f4 {[%clk 0:03:02]}  Nc6 {[%clk 0:02:54]} 5. c3 {[%clk 0:03:02]}  b6 {[%clk 0:02:54]} 6. Nf3 {[%clk 0:03:02]}  Bb7 {[%clk 0:02:55]} 7. O-O {[%clk 0:03:02]}  d6 {[%clk 0:02:49]} 8. a3 {[%clk 0:02:58]}  Be7 {[%clk 0:02:49]} 9. Qe2 {[%clk 0:02:53]}  O-O {[%clk 0:02:45]} 10. e4 {[%clk 0:02:53]}  d5 {[%clk 0:02:24]} 11. e5 {[%clk 0:02:53]}  Ne4 {[%clk 0:02:19]} 12. Nbd2 {[%clk 0:02:53]}  cxd4 {[%clk 0:02:14]} 13. cxd4 {[%clk 0:02:51]}  f5 {[%clk 0:02:09]} 14. exf6 {[%clk 0:02:48]}  Bxf6 {[%clk 0:02:09]} 15. Nxe4 {[%clk 0:02:38]}  dxe4 {[%clk 0:02:05]} 16. Qxe4 {[%clk 0:02:36]}  Bxd4+ {[%clk 0:02:02]} 17. Kh1 {[%clk 0:02:34]}  g6 {[%clk 0:02:02]} 18. Qxe6+ {[%clk 0:02:24]}  Kh8 {[%clk 0:02:00]} 19. Ng5 {[%clk 0:02:20]}  Bg7 {[%clk 0:01:44]} 20. Bxg6 {[%clk 0:02:00]}  Qxg5 {[%clk 0:01:33]} 21. Bd3 {[%clk 0:01:52]}  Nd4 {[%clk 0:01:27]} 22. Qh3 {[%clk 0:01:28]}  Qh6 {[%clk 0:01:27]} 23. Qg3 {[%clk 0:01:28]}  Bf6 {[%clk 0:01:24]} 24. f5 {[%clk 0:01:28]}  Qg7 {[%clk 0:01:24]} 25. Qh3 {[%clk 0:01:27]}  Rg8 {[%clk 0:01:22]} 26. Rf2 {[%clk 0:01:26]}  Rae8 {[%clk 0:01:20]} 27. Bh6 {[%clk 0:01:25]}  Qg4 {[%clk 0:01:19]} 28. Qxg4 {[%clk 0:01:20]}  Rxg4 {[%clk 0:01:20]} 29. Bc4 {[%clk 0:01:13]}  Bh4 {[%clk 0:01:06]} 30. Rd2 {[%clk 0:01:10]}  Nxf5 {[%clk 0:01:03]} 31. h3 {[%clk 0:00:58]}  Rxc4 {[%clk 0:01:01]} 0-1


[Site "https://www.chess.com"]

[Event "Titled Tuesday Blitz March 28 Early 2023"]
[White "Zubritskiy, Artyom"]
[Black "Valgmae, Toomas"]
[WhiteFideId "4181247"]
[BlackFideId "4502523"]
[WhiteElo "2419"]
[BlackElo "2170"]
[Result "0-1"]
[Round "06"]
[TimeControl "180+2"]
[Date "2023.03.28"]
[WhiteClock "0:00:01"]
[BlackClock "0:01:49"]

1. d4 {[%clk 0:03:00]}  d5 {[%clk 0:03:00]} 2. c4 {[%clk 0:03:01]}  c6 {[%clk 0:03:00]} 3. Nf3 {[%clk 0:03:01]}  Nf6 {[%clk 0:03:00]} 4. Qc2 {[%clk 0:03:01]}  Bg4 {[%clk 0:02:59]} 5. Ne5 {[%clk 0:02:59]}  Bh5 {[%clk 0:02:59]} 6. cxd5 {[%clk 0:02:45]}  Nxd5 {[%clk 0:02:59]} 7. g4 {[%clk 0:02:01]}  Bg6 {[%clk 0:02:59]} 8. Nxg6 {[%clk 0:02:01]}  hxg6 {[%clk 0:03:00]} 9. e3 {[%clk 0:02:01]}  e6 {[%clk 0:02:55]} 10. Bg2 {[%clk 0:01:59]}  g5 {[%clk 0:02:52]} 11. Nd2 {[%clk 0:01:55]}  Bd6 {[%clk 0:02:51]} 12. h3 {[%clk 0:01:51]}  Nd7 {[%clk 0:02:50]} 13. Nc4 {[%clk 0:01:29]}  Bc7 {[%clk 0:02:49]} 14. Bd2 {[%clk 0:01:29]}  Qf6 {[%clk 0:02:40]} 15. Rf1 {[%clk 0:01:17]}  O-O-O {[%clk 0:02:39]} 16. O-O-O {[%clk 0:01:17]}  Kb8 {[%clk 0:02:39]} 17. Kb1 {[%clk 0:01:15]}  N7b6 {[%clk 0:02:36]} 18. Na5 {[%clk 0:01:15]}  e5 {[%clk 0:02:32]} 19. dxe5 {[%clk 0:01:05]}  Bxe5 {[%clk 0:02:32]} 20. f4 {[%clk 0:00:44]}  gxf4 {[%clk 0:02:29]} 21. exf4 {[%clk 0:00:45]}  Nxf4 {[%clk 0:02:28]} 22. Bxf4 {[%clk 0:00:36]}  Rxd1+ {[%clk 0:02:15]} 23. Qxd1 {[%clk 0:00:10]}  Bxf4 {[%clk 0:02:14]} 24. Qc2 {[%clk 0:00:08]}  g5 {[%clk 0:02:08]} 25. a3 {[%clk 0:00:04]}  Rd8 {[%clk 0:02:04]} 26. Rd1 {[%clk 0:00:02]}  Nd5 {[%clk 0:02:01]} 27. Nc4 {[%clk 0:00:01]}  Qe6 {[%clk 0:01:59]} 28. Be4 {[%clk 0:00:01]}  a6 {[%clk 0:01:58]} 29. Bf5 {[%clk 0:00:01]}  Qe7 {[%clk 0:01:49]} 0-1


[Site "https://www.chess.com"]

[Event "Titled Tuesday Blitz March 28 Early 2023"]
[White "Meunier-Pion, Jean"]
[Black "Hardaway, Brewington"]
[WhiteFideId "20685327"]
[BlackFideId "30941849"]
[WhiteElo "2124"]
[BlackElo "2159"]
[Result "0-1"]
[Round "06"]
[TimeControl "180+2"]
[Date "2023.03.28"]
[WhiteClock "0:00:18"]
[BlackClock "0:00:24"]

1. d4 {[%clk 0:03:00]}  d5 {[%clk 0:02:59]} 2. c4 {[%clk 0:03:00]}  e6 {[%clk 0:02:59]} 3. Nf3 {[%clk 0:02:59]}  Nf6 {[%clk 0:03:00]} 4. Bg5 {[%clk 0:02:59]}  Be7 {[%clk 0:02:59]} 5. e3 {[%clk 0:02:59]}  c6 {[%clk 0:03:00]} 6. Nc3 {[%clk 0:02:59]}  Nbd7 {[%clk 0:03:00]} 7. Qc2 {[%clk 0:02:58]}  h6 {[%clk 0:03:00]} 8. Bf4 {[%clk 0:02:55]}  O-O {[%clk 0:03:00]} 9. Rc1 {[%clk 0:02:53]}  b6 {[%clk 0:02:57]} 10. Bd3 {[%clk 0:02:51]}  Bb7 {[%clk 0:02:55]} 11. O-O {[%clk 0:02:51]}  dxc4 {[%clk 0:02:45]} 12. Bxc4 {[%clk 0:02:50]}  b5 {[%clk 0:02:45]} 13. Bb3 {[%clk 0:02:39]}  Rc8 {[%clk 0:02:29]} 14. Qe2 {[%clk 0:02:36]}  b4 {[%clk 0:02:26]} 15. Na4 {[%clk 0:02:36]}  Qa5 {[%clk 0:02:16]} 16. Rfd1 {[%clk 0:02:37]}  c5 {[%clk 0:02:13]} 17. dxc5 {[%clk 0:02:28]}  Bc6 {[%clk 0:01:47]} 18. Qc2 {[%clk 0:02:12]}  Bxa4 {[%clk 0:01:46]} 19. Bxa4 {[%clk 0:02:11]}  Rxc5 {[%clk 0:01:47]} 20. Qb3 {[%clk 0:02:00]}  Rxc1 {[%clk 0:01:40]} 21. Rxc1 {[%clk 0:02:00]}  Nc5 {[%clk 0:01:40]} 22. Rxc5 {[%clk 0:01:38]}  Qxc5 {[%clk 0:01:39]} 23. h3 {[%clk 0:01:27]}  Qd5 {[%clk 0:01:36]} 24. Nd4 {[%clk 0:01:13]}  Qxb3 {[%clk 0:01:23]} 25. Bxb3 {[%clk 0:01:10]}  Rc8 {[%clk 0:01:23]} 26. Kh2 {[%clk 0:01:03]}  Nd5 {[%clk 0:01:20]} 27. Bg3 {[%clk 0:01:00]}  Bf6 {[%clk 0:01:16]} 28. Nb5 {[%clk 0:00:53]}  a6 {[%clk 0:01:11]} 29. Nd6 {[%clk 0:00:51]}  Rc6 {[%clk 0:00:56]} 30. e4 {[%clk 0:00:47]}  Nb6 {[%clk 0:00:52]} 31. e5 {[%clk 0:00:45]}  Be7 {[%clk 0:00:52]} 32. Bf4 {[%clk 0:00:25]}  a5 {[%clk 0:00:48]} 33. Kg3 {[%clk 0:00:21]}  a4 {[%clk 0:00:46]} 34. Bd1 {[%clk 0:00:21]}  a3 {[%clk 0:00:46]} 35. bxa3 {[%clk 0:00:21]}  bxa3 {[%clk 0:00:46]} 36. Bb3 {[%clk 0:00:18]}  Rc3+ {[%clk 0:00:46]} 37. Be3 {[%clk 0:00:15]}  Nd7 {[%clk 0:00:41]} 38. Nc4 {[%clk 0:00:12]}  Bc5 {[%clk 0:00:35]} 39. Kf4 {[%clk 0:00:12]}  Bxe3+ {[%clk 0:00:35]} 40. Nxe3 {[%clk 0:00:12]}  Nc5 {[%clk 0:00:34]} 41. Bc4 {[%clk 0:00:08]}  g5+ {[%clk 0:00:33]} 42. Kf3 {[%clk 0:00:07]}  Rc1 {[%clk 0:00:30]} 43. Ke2 {[%clk 0:00:07]}  Rb1 {[%clk 0:00:28]} 44. Nd1 {[%clk 0:00:06]}  Nd7 {[%clk 0:00:24]} 45. Bd3 {[%clk 0:00:06]}  Rb4 {[%clk 0:00:23]} 46. Kd2 {[%clk 0:00:05]}  Nxe5 {[%clk 0:00:24]} 47. Bc2 {[%clk 0:00:05]}  Rb8 {[%clk 0:00:18]} 48. Kc3 {[%clk 0:00:05]}  Kg7 {[%clk 0:00:14]} 49. Ne3 {[%clk 0:00:05]}  f5 {[%clk 0:00:14]} 50. Nd1 {[%clk 0:00:05]}  Kf6 {[%clk 0:00:14]} 51. g3 {[%clk 0:00:05]}  f4 {[%clk 0:00:14]} 52. gxf4 {[%clk 0:00:05]}  gxf4 {[%clk 0:00:14]} 53. f3 {[%clk 0:00:06]}  Nxf3 {[%clk 0:00:15]} 54. Nf2 {[%clk 0:00:06]}  Rc8+ {[%clk 0:00:14]} 55. Kd3 {[%clk 0:00:04]}  Ne1+ {[%clk 0:00:14]} 56. Ke2 {[%clk 0:00:04]}  Rxc2+ {[%clk 0:00:14]} 57. Kxe1 {[%clk 0:00:04]}  Rxf2 {[%clk 0:00:14]} 58. Kxf2 {[%clk 0:00:05]}  e5 {[%clk 0:00:15]} 59. Kf3 {[%clk 0:00:06]}  Kf5 {[%clk 0:00:15]} 60. h4 {[%clk 0:00:07]}  e4+ {[%clk 0:00:16]} 61. Ke2 {[%clk 0:00:06]}  Kg4 {[%clk 0:00:16]} 62. h5 {[%clk 0:00:07]}  Kxh5 {[%clk 0:00:17]} 63. Kf2 {[%clk 0:00:08]}  Kg4 {[%clk 0:00:17]} 64. Kg2 {[%clk 0:00:09]}  h5 {[%clk 0:00:18]} 65. Kf1 {[%clk 0:00:10]}  h4 {[%clk 0:00:19]} 66. Kg1 {[%clk 0:00:11]}  e3 {[%clk 0:00:19]} 67. Kh1 {[%clk 0:00:12]}  Kf5 {[%clk 0:00:20]} 68. Kh2 {[%clk 0:00:13]}  Ke4 {[%clk 0:00:21]} 69. Kg2 {[%clk 0:00:14]}  Kd3 {[%clk 0:00:21]} 70. Kf1 {[%clk 0:00:14]}  Kd2 {[%clk 0:00:22]} 71. Kg2 {[%clk 0:00:15]}  e2 {[%clk 0:00:22]} 72. Kh3 {[%clk 0:00:16]}  e1=Q {[%clk 0:00:23]} 73. Kg2 {[%clk 0:00:17]}  Qg3+ {[%clk 0:00:23]} 74. Kh1 {[%clk 0:00:17]}  Qg4 {[%clk 0:00:22]} 75. Kh2 {[%clk 0:00:18]}  f3 {[%clk 0:00:23]} 76. Kh1 {[%clk 0:00:18]}  Qg2# {[%clk 0:00:24]} 0-1


[Site "https://www.chess.com"]

[Event "Titled Tuesday Blitz March 28 Early 2023"]
[White "Khumalo, Keith"]
[Black "Melikhov, Evgeny V."]
[WhiteFideId "14319470"]
[BlackFideId "4122046"]
[WhiteElo "2056"]
[BlackElo "2158"]
[Result "1-0"]
[Round "06"]
[TimeControl "180+2"]
[Date "2023.03.28"]
[WhiteClock "0:00:44"]
[BlackClock "0:00:06"]

1. d4 {[%clk 0:03:00]}  Nf6 {[%clk 0:02:59]} 2. c4 {[%clk 0:02:57]}  e6 {[%clk 0:02:59]} 3. Nf3 {[%clk 0:02:57]}  d5 {[%clk 0:02:59]} 4. g3 {[%clk 0:02:57]}  dxc4 {[%clk 0:02:59]} 5. Bg2 {[%clk 0:02:58]}  Nc6 {[%clk 0:02:59]} 6. O-O {[%clk 0:02:59]}  Rb8 {[%clk 0:02:59]} 7. e3 {[%clk 0:03:00]}  b5 {[%clk 0:02:59]} 8. Qe2 {[%clk 0:03:00]}  Bd6 {[%clk 0:02:57]} 9. Rd1 {[%clk 0:03:01]}  Qe7 {[%clk 0:02:44]} 10. a4 {[%clk 0:02:59]}  a6 {[%clk 0:02:43]} 11. axb5 {[%clk 0:02:58]}  axb5 {[%clk 0:02:43]} 12. Nc3 {[%clk 0:02:59]}  O-O {[%clk 0:02:41]} 13. e4 {[%clk 0:02:53]}  e5 {[%clk 0:02:41]} 14. Bg5 {[%clk 0:02:26]}  Nb4 {[%clk 0:02:12]} 15. Ra7 {[%clk 0:02:12]}  Rb7 {[%clk 0:01:56]} 16. Rxb7 {[%clk 0:02:09]}  Bxb7 {[%clk 0:01:56]} 17. Nxb5 {[%clk 0:02:10]}  Nd3 {[%clk 0:01:47]} 18. b3 {[%clk 0:02:03]}  exd4 {[%clk 0:01:10]} 19. Nfxd4 {[%clk 0:01:52]}  Qe5 {[%clk 0:00:36]} 20. Bxf6 {[%clk 0:01:31]}  Qxf6 {[%clk 0:00:36]} 21. bxc4 {[%clk 0:01:30]}  Nc5 {[%clk 0:00:25]} 22. Nf5 {[%clk 0:01:24]}  Be5 {[%clk 0:00:20]} 23. f4 {[%clk 0:01:24]}  Bb2 {[%clk 0:00:13]} 24. g4 {[%clk 0:01:24]}  Qb6 {[%clk 0:00:11]} 25. Qxb2 {[%clk 0:01:15]}  Nd3+ {[%clk 0:00:09]} 26. Qd4 {[%clk 0:01:15]}  Qxd4+ {[%clk 0:00:08]} 27. Nfxd4 {[%clk 0:01:04]}  Nxf4 {[%clk 0:00:09]} 28. Bf3 {[%clk 0:01:01]}  c5 {[%clk 0:00:09]} 29. Nb3 {[%clk 0:00:59]}  Rc8 {[%clk 0:00:08]} 30. Nxc5 {[%clk 0:00:59]}  g5 {[%clk 0:00:07]} 31. Nxb7 {[%clk 0:00:59]}  Rxc4 {[%clk 0:00:07]} 32. N7d6 {[%clk 0:00:55]}  Rc2 {[%clk 0:00:07]} 33. Kf1 {[%clk 0:00:45]}  Nh3 {[%clk 0:00:07]} 34. Be2 {[%clk 0:00:44]}  Nf4 {[%clk 0:00:06]} 35. Nd4 {[%clk 0:00:44]}  Ra2 {[%clk 0:00:06]} 36. N6f5 {[%clk 0:00:44]}  h5 {[%clk 0:00:06]} 37. gxh5 {[%clk 0:00:44]} 1-0


[Site "https://www.chess.com"]

[Event "Titled Tuesday Blitz March 28 Early 2023"]
[White "Annaberdiyev, Meylis"]
[Black "Rios Escobar, Adan"]
[WhiteFideId "14000563"]
[BlackFideId "3403645"]
[WhiteElo "2416"]
[BlackElo "2416"]
[Result "1-0"]
[Round "06"]
[TimeControl "180+2"]
[Date "2023.03.28"]
[WhiteClock "0:00:42"]
[BlackClock "0:00:01"]

1. e4 {[%clk 0:02:52]}  c5 {[%clk 0:02:59]} 2. Nf3 {[%clk 0:02:49]}  d6 {[%clk 0:03:00]} 3. d4 {[%clk 0:02:49]}  cxd4 {[%clk 0:03:01]} 4. Qxd4 {[%clk 0:02:49]}  Nc6 {[%clk 0:03:00]} 5. Bb5 {[%clk 0:02:49]}  Bd7 {[%clk 0:03:00]} 6. Bxc6 {[%clk 0:02:48]}  Bxc6 {[%clk 0:03:01]} 7. Nc3 {[%clk 0:02:48]}  e5 {[%clk 0:03:00]} 8. Qd3 {[%clk 0:02:45]}  h6 {[%clk 0:02:58]} 9. O-O {[%clk 0:02:42]}  Nf6 {[%clk 0:02:55]} 10. Rd1 {[%clk 0:02:43]}  Be7 {[%clk 0:02:54]} 11. Nh4 {[%clk 0:02:43]}  b5 {[%clk 0:02:30]} 12. Nf5 {[%clk 0:02:40]}  b4 {[%clk 0:02:20]} 13. Nd5 {[%clk 0:02:27]}  Bxd5 {[%clk 0:02:14]} 14. exd5 {[%clk 0:02:28]}  g6 {[%clk 0:02:09]} 15. Nxe7 {[%clk 0:01:43]}  Kxe7 {[%clk 0:02:07]} 16. a3 {[%clk 0:01:33]}  a5 {[%clk 0:02:05]} 17. Bd2 {[%clk 0:01:27]}  Rb8 {[%clk 0:01:43]} 18. axb4 {[%clk 0:01:27]}  axb4 {[%clk 0:01:44]} 19. Ra6 {[%clk 0:01:16]}  Qd7 {[%clk 0:01:15]} 20. Re1 {[%clk 0:01:08]}  Qb5 {[%clk 0:01:12]} 21. Ra7+ {[%clk 0:01:07]}  Nd7 {[%clk 0:01:09]} 22. Qh3 {[%clk 0:00:59]}  Rb7 {[%clk 0:00:50]} 23. Bg5+ {[%clk 0:00:57]}  f6 {[%clk 0:00:31]} 24. Qe6+ {[%clk 0:00:54]}  Kd8 {[%clk 0:00:18]} 25. Bxf6+ {[%clk 0:00:47]}  Kc8 {[%clk 0:00:04]} 26. Ra8+ {[%clk 0:00:44]}  Kc7 {[%clk 0:00:04]} 27. Rxh8 {[%clk 0:00:43]}  Kb6 {[%clk 0:00:01]} 28. Qxd6+ {[%clk 0:00:42]} 1-0


[Site "https://www.chess.com"]

[Event "Titled Tuesday Blitz March 28 Early 2023"]
[White "Lenaerts, Lennert"]
[Black "Vedder, Richard"]
[WhiteFideId "211435"]
[BlackFideId "1004166"]
[WhiteElo "2334"]
[BlackElo "2168"]
[Result "1-0"]
[Round "06"]
[TimeControl "180+2"]
[Date "2023.03.28"]
[WhiteClock "0:00:19"]
[BlackClock "0:00:17"]

1. d4 {[%clk 0:02:56]}  d5 {[%clk 0:02:59]} 2. c4 {[%clk 0:02:55]}  dxc4 {[%clk 0:02:59]} 3. Nf3 {[%clk 0:02:54]}  Nf6 {[%clk 0:02:59]} 4. e3 {[%clk 0:02:55]}  e6 {[%clk 0:02:59]} 5. Bxc4 {[%clk 0:02:53]}  c5 {[%clk 0:02:59]} 6. O-O {[%clk 0:02:49]}  Nc6 {[%clk 0:02:59]} 7. dxc5 {[%clk 0:02:47]}  Bxc5 {[%clk 0:02:56]} 8. a3 {[%clk 0:02:45]}  O-O {[%clk 0:02:53]} 9. b4 {[%clk 0:02:44]}  Be7 {[%clk 0:02:53]} 10. Bb2 {[%clk 0:02:43]}  b6 {[%clk 0:02:42]} 11. Nbd2 {[%clk 0:02:40]}  Bb7 {[%clk 0:02:42]} 12. Qe2 {[%clk 0:02:39]}  Rc8 {[%clk 0:02:40]} 13. Rac1 {[%clk 0:02:39]}  Qd6 {[%clk 0:02:36]} 14. Rfd1 {[%clk 0:02:37]}  Qb8 {[%clk 0:02:34]} 15. e4 {[%clk 0:02:37]}  Rfd8 {[%clk 0:02:30]} 16. h3 {[%clk 0:02:37]}  Nd7 {[%clk 0:02:22]} 17. Ba2 {[%clk 0:02:34]}  Nce5 {[%clk 0:02:16]} 18. Nxe5 {[%clk 0:02:31]}  Nxe5 {[%clk 0:02:16]} 19. Nf3 {[%clk 0:02:25]}  Nxf3+ {[%clk 0:02:14]} 20. Qxf3 {[%clk 0:02:26]}  Rxd1+ {[%clk 0:02:07]} 21. Rxd1 {[%clk 0:02:07]}  Rd8 {[%clk 0:02:04]} 22. Rxd8+ {[%clk 0:01:40]}  Qxd8 {[%clk 0:02:05]} 23. Qg3 {[%clk 0:01:40]}  Bf8 {[%clk 0:02:00]} 24. Qe3 {[%clk 0:01:31]}  Qd1+ {[%clk 0:01:57]} 25. Kh2 {[%clk 0:01:31]}  Bd6+ {[%clk 0:01:47]} 26. e5 {[%clk 0:01:29]}  Bc7 {[%clk 0:01:35]} 27. Bb3 {[%clk 0:01:26]}  Qd7 {[%clk 0:01:31]} 28. Bc2 {[%clk 0:01:23]}  Qd5 {[%clk 0:01:27]} 29. f3 {[%clk 0:01:19]}  f6 {[%clk 0:01:22]} 30. Bb3 {[%clk 0:00:51]}  Qd7 {[%clk 0:01:04]} 31. Kh1 {[%clk 0:00:47]}  f5 {[%clk 0:01:01]} 32. Qc3 {[%clk 0:00:39]}  Kf7 {[%clk 0:00:54]} 33. Qc2 {[%clk 0:00:37]}  g6 {[%clk 0:00:53]} 34. Qc1 {[%clk 0:00:33]}  Kg7 {[%clk 0:00:42]} 35. Kh2 {[%clk 0:00:30]}  Bb8 {[%clk 0:00:29]} 36. Qg5 {[%clk 0:00:27]}  Qf7 {[%clk 0:00:22]} 37. h4 {[%clk 0:00:26]}  Bc7 {[%clk 0:00:20]} 38. h5 {[%clk 0:00:26]}  a5 {[%clk 0:00:18]} 39. Bd4 {[%clk 0:00:22]}  axb4 {[%clk 0:00:17]} 40. axb4 {[%clk 0:00:23]}  b5 {[%clk 0:00:17]} 41. Kh3 {[%clk 0:00:19]}  Bd5 {[%clk 0:00:16]} 42. Bxd5 {[%clk 0:00:18]}  exd5 {[%clk 0:00:17]} 43. e6+ {[%clk 0:00:19]} 1-0


[Site "https://www.chess.com"]

[Event "Titled Tuesday Blitz March 28 Early 2023"]
[White "Seletsky, Grigory"]
[Black "Fiorito, Joaquin"]
[WhiteFideId "14112191"]
[BlackFideId "180173"]
[WhiteElo "2490"]
[BlackElo "2157"]
[Result "0-1"]
[Round "06"]
[TimeControl "180+2"]
[Date "2023.03.28"]
[WhiteClock "0:00:15"]
[BlackClock "0:00:13"]

1. e4 {[%clk 0:02:33]}  c6 {[%clk 0:02:59]} 2. d4 {[%clk 0:02:33]}  d5 {[%clk 0:02:59]} 3. Nc3 {[%clk 0:02:33]}  dxe4 {[%clk 0:02:59]} 4. Nxe4 {[%clk 0:02:33]}  Nf6 {[%clk 0:03:00]} 5. Nxf6+ {[%clk 0:02:33]}  exf6 {[%clk 0:03:01]} 6. c3 {[%clk 0:02:32]}  Bd6 {[%clk 0:03:01]} 7. Bd3 {[%clk 0:02:32]}  O-O {[%clk 0:03:02]} 8. Qc2 {[%clk 0:02:32]}  Re8+ {[%clk 0:03:02]} 9. Ne2 {[%clk 0:02:32]}  h5 {[%clk 0:03:03]} 10. Bd2 {[%clk 0:02:30]}  Nd7 {[%clk 0:02:55]} 11. O-O-O {[%clk 0:02:30]}  b5 {[%clk 0:02:54]} 12. h3 {[%clk 0:02:29]}  Nb6 {[%clk 0:02:51]} 13. Rdg1 {[%clk 0:02:28]}  Be6 {[%clk 0:02:48]} 14. Kb1 {[%clk 0:02:26]}  Bc4 {[%clk 0:02:44]} 15. Nf4 {[%clk 0:02:18]}  Bxf4 {[%clk 0:02:19]} 16. Bxf4 {[%clk 0:02:15]}  Qd5 {[%clk 0:02:19]} 17. Bxc4 {[%clk 0:01:56]}  Nxc4 {[%clk 0:02:20]} 18. g4 {[%clk 0:01:06]}  Re4 {[%clk 0:01:50]} 19. Bc1 {[%clk 0:01:05]}  Rae8 {[%clk 0:01:47]} 20. gxh5 {[%clk 0:01:01]}  Qxh5 {[%clk 0:01:32]} 21. Rg2 {[%clk 0:00:57]}  Re2 {[%clk 0:01:20]} 22. Qd3 {[%clk 0:00:56]}  g6 {[%clk 0:00:53]} 23. Rhg1 {[%clk 0:00:55]}  f5 {[%clk 0:00:48]} 24. Rg5 {[%clk 0:00:52]}  Qh4 {[%clk 0:00:37]} 25. Qxf5 {[%clk 0:00:47]}  Qe4+ {[%clk 0:00:23]} 26. Qxe4 {[%clk 0:00:44]}  R8xe4 {[%clk 0:00:23]} 27. f4 {[%clk 0:00:41]}  Re1 {[%clk 0:00:13]} 28. f5 {[%clk 0:00:37]}  Rxg1 {[%clk 0:00:13]} 29. Rxg1 {[%clk 0:00:36]}  Kg7 {[%clk 0:00:14]} 30. fxg6 {[%clk 0:00:36]}  fxg6 {[%clk 0:00:15]} 31. b3 {[%clk 0:00:33]}  Nd6 {[%clk 0:00:15]} 32. Rg2 {[%clk 0:00:29]}  Nf5 {[%clk 0:00:15]} 33. Kc2 {[%clk 0:00:28]}  Re3 {[%clk 0:00:14]} 34. Bb2 {[%clk 0:00:22]}  Rxh3 {[%clk 0:00:14]} 35. Rd2 {[%clk 0:00:20]}  Kf7 {[%clk 0:00:12]} 36. c4 {[%clk 0:00:19]}  bxc4 {[%clk 0:00:12]} 37. bxc4 {[%clk 0:00:20]}  Ne3+ {[%clk 0:00:13]} 38. Kc1 {[%clk 0:00:16]}  Nxc4 {[%clk 0:00:13]} 39. Rf2+ {[%clk 0:00:16]}  Ke6 {[%clk 0:00:13]} 40. Rg2 {[%clk 0:00:15]}  Rh1+ {[%clk 0:00:12]} 41. Kc2 {[%clk 0:00:15]}  Ne3+ {[%clk 0:00:13]} 0-1


[Site "https://www.chess.com"]